[Event "20th Prague Open 2022"]
[Site "Prague"]
[Date "2022.01.13"]
[Round "8.7"]
[White "Van Osch, Mees"]
[Black "Carlsson, Ludvig"]
[Result "1/2-1/2"]
[ECO "C47"]
[WhiteElo "2364"]
[BlackElo "2355"]
[Annotator "ChessBase"]
[PlyCount "31"]
[EventDate "2022.01.07"]
[EventType "swiss"]
[EventCountry "CZE"]
[SourceTitle "playchess.com"]
[Source "ChessBase"]
[SourceQuality "1"]
[TimeControl "40/5400+30:1800+30"]

1. e4 {[%emt 0:00:03]} e5 {[%emt 0:00:11]} 2. Nf3 {[%emt 0:00:05]} Nc6 {[%emt 0:00:08]} 3. Nc3 {[%emt 0:00:57]} Nf6 {[%emt 0:00:10]} 4. h3 {[%emt 0:00:32]} d5 {[%emt 0:00:44]} 5. exd5 {[%emt 0:00:15]} Nxd5 {[%emt 0:00:07]} 6. Bb5 {[%emt 0:00:07]} Nxc3 {[%emt 0:00:08]} 7. bxc3 {[%emt 0:00:06]} Bd6 {[%emt 0:00:11]} 8. O-O {[%emt 0:00:15]} O-O {[%emt 0:00:11]} 9. Re1 {[%emt 0:00:12]} Qf6 {[%emt 0:06:49]} 10. d4 {[%emt 0:00:11]} exd4 {[%emt 0:00:10]} 11. cxd4 {[%emt 0:00:04]} a6 {[%emt 0:10:04]} 12. Bd3 {[%emt 0:05:59]} Bf5 {[%emt 0:00:43]} 13. Rb1 {[%emt 0:11:13]} Bxd3 {[%emt 0:20:11]} 14. Qxd3 {[%emt 0:00:52]} b6 {[%emt 0:00:34]} 15. Bd2 {[%emt 0:10:38]} Qg6 {[%emt 0:04:26]} 16. Qxg6 {[%emt 0:02:15]} 1/2-1/2

[Event "20th Prague Open 2022"]
[Site "Prague"]
[Date "2022.01.13"]
[Round "8.8"]
[White "Lim, Zhuo Ren"]
[Black "Vojta, Jakub"]
[Result "0-1"]
[ECO "D23"]
[WhiteElo "2311"]
[BlackElo "2289"]
[Annotator "ChessBase"]
[PlyCount "86"]
[EventDate "2022.01.07"]
[EventType "swiss"]
[EventCountry "CZE"]
[SourceTitle "playchess.com"]
[Source "ChessBase"]
[SourceQuality "1"]
[TimeControl "40/5400+30:1800+30"]

1. d4 {[%emt 0:02:45]} Nf6 {[%emt 0:00:04]} 2. Nf3 {[%emt 0:00:13]} d5 {[%emt 0:00:05]} 3. c4 {[%emt 0:00:10]} dxc4 {[%emt 0:00:05]} 4. g3 {[%emt 0:00:08]} g6 {[%emt 0:03:51]} 5. Bg2 {[%emt 0:00:22]} Bg7 {[%emt 0:00:02]} 6. O-O {[%emt 0:00:35]} O-O {[%emt 0:00:03]} 7. Na3 {[%emt 0:00:22]} Nc6 {[%emt 0:00:06]} 8. Nxc4 {[%emt 0:00:38]} Be6 {[%emt 0:00:02]} 9. b3 {[%emt 0:01:48]} Bd5 {[%emt 0:00:03]} 10. Bb2 {[%emt 0:00:28]} a5 {[%emt 0:00:03]} 11. e3 {[%emt 0:06:28]} a4 {[%emt 0:03:09]} 12. Qe2 {[%emt 0:04:25]} Ra6 {[%emt 0:14:13]} 13. Rfd1 {[%emt 0:11:22]} Qa8 {[%emt 0:02:34]} 14. Ncd2 {[%emt 0:03:36]} Ne4 {[%emt 0:04:47]} 15. Ng5 {[%emt 0:26:18]} a3 {[%emt 0:10:12]} 16. Ndxe4 {[%emt 0:00:16]} axb2 {[%emt 0:00:02]} 17. Qxb2 {[%emt 0:00:05]} Nd8 {[%emt 0:04:48]} 18. Nc3 {[%emt 0:03:23]} Bxg2 {[%emt 0:00:55]} 19. Kxg2 {[%emt 0:00:02]} b5+ {[%emt 0:00:49]} 20. f3 {[%emt 0:02:41]} b4 {[%emt 0:03:37]} 21. Na4 {[%emt 0:00:25]} Qd5 {[%emt 0:13:39]} 22. Ne4 {[%emt 0:01:28]} f5 {[%emt 0:01:10]} 23. Nec5 {[%emt 0:02:09]} Ra5 {[%emt 0:08:01]} 24. Qe2 {[%emt 0:01:36]} Nf7 {[%emt 0:05:10]} 25. Rac1 {[%emt 0:02:11]} Nd6 {[%emt 0:03:00]} 26. Nd7 {[%emt 0:01:38]} Rd8 {[%emt 0:01:45]} 27. Rc5 {[%emt 0:01:13]} Rxc5 {[%emt 0:02:07]} 28. dxc5 {[%emt 0:02:17]} Qc6 {[%emt 0:00:22]} 29. cxd6 {[%emt 0:00:19]} Rxd7 {[%emt 0:00:06]} 30. dxe7 {[%emt 0:01:30]} Rxe7 {[%emt 0:00:08]} 31. Rd8+ {[%emt 0:01:22]} Kf7 {[%emt 0:00:22]} 32. Kf2 {[%emt 0:01:43]} Bf6 {[%emt 0:02:04]} 33. Qd3 {[%emt 0:03:39]} Kg7 {[%emt 0:00:36]} 34. Qd5 {[%emt 0:01:30]} Qc1 {[%emt 0:01:50]} 35. Qg8+ {[%emt 0:11:15]} Kh6 {[%emt 0:00:02]} 36. Qf8+ {[%emt 0:00:03]} Kh5 {[%emt 0:06:30]} 37. g4+ {[%emt 0:02:36]} fxg4 {[%emt 0:00:44]} 38. fxg4+ {[%emt 0:00:59]} Kxg4 {[%emt 0:00:56]} 39. h3+ {[%emt 0:01:14]} Kxh3 {[%emt 0:00:57]} 40. Qh6+ {[%emt 0:01:28]} Bh4+ {[%emt 0:00:06]} 41. Ke2 {[%emt 0:30:20]} Qe1+ {[%emt 0:31:51]} 42. Kd3 {[%emt 0:00:45]} Qd1+ {[%emt 0:01:30]} 43. Kc4 {[%emt 0:00:03]} Qxd8 {[%emt 0:00:24]} 0-1

[Event "20th Prague Open 2022"]
[Site "Prague"]
[Date "2022.01.13"]
[Round "8.10"]
[White "Koubova, Anna Marie"]
[Black "Bochnicka, Vladimir"]
[Result "1-0"]
[ECO "A80"]
[WhiteElo "2148"]
[BlackElo "2222"]
[Annotator "ChessBase"]
[PlyCount "61"]
[EventDate "2022.01.07"]
[EventType "swiss"]
[EventCountry "CZE"]
[SourceTitle "playchess.com"]
[Source "ChessBase"]
[SourceQuality "1"]
[TimeControl "40/5400+30:1800+30"]

1. d4 {[%emt 0:00:09]} f5 {[%emt 0:00:05]} 2. Nc3 {[%emt 0:00:16]} Nf6 {[%emt 0:00:17]} 3. Bg5 {[%emt 0:00:22]} e6 {[%emt 0:00:44]} 4. e4 {[%emt 0:00:47]} fxe4 {[%emt 0:02:34]} 5. Nxe4 {[%emt 0:00:51]} Be7 {[%emt 0:00:20]} 6. Bxf6 {[%emt 0:01:07]} Bxf6 {[%emt 0:00:12]} 7. Nf3 {[%emt 0:01:04]} O-O {[%emt 0:11:45]} 8. Bd3 {[%emt 0:08:56]} Nc6 {[%emt 0:11:15]} 9. Nxf6+ {[%emt 0:02:15]} Qxf6 {[%emt 0:00:44]} 10. O-O {[%emt 0:00:22]} b6 {[%emt 0:03:08]} 11. c3 {[%emt 0:06:54]} Bb7 {[%emt 0:04:23]} 12. Qc2 {[%emt 0:00:40]} g6 {[%emt 0:01:44]} 13. Be4 {[%emt 0:06:21]} d5 {[%emt 0:20:49]} 14. Bd3 {[%emt 0:00:38]} e5 {[%emt 0:00:10]} 15. Nxe5 {[%emt 0:01:56]} Nxe5 {[%emt 0:00:14]} 16. dxe5 {[%emt 0:00:09]} Qxe5 {[%emt 0:00:11]} 17. Rae1 {[%emt 0:02:06]} Qf6 {[%emt 0:00:54]} 18. Re3 {[%emt 0:07:45]} Rae8 {[%emt 0:04:14]} 19. Rfe1 {[%emt 0:19:37]} Qf7 {[%emt 0:07:38]} 20. h4 {[%emt 0:04:52]} Kg7 {[%emt 0:11:08]} 21. h5 {[%emt 0:02:35]} Bc6 {[%emt 0:02:42]} 22. hxg6 {[%emt 0:04:34]} hxg6 {[%emt 0:00:36]} 23. R1e2 {[%emt 0:00:51]} g5 {[%emt 0:08:57]} 24. Rh3 {[%emt 0:12:03]} Rh8 {[%emt 0:00:49]} 25. Qd2 {[%emt 0:02:50]} Qf6 {[%emt 0:02:06]} 26. Rxe8 {[%emt 0:03:03]} Bxe8 {[%emt 0:01:18]} 27. Rg3 {[%emt 0:02:10]} Kh6 {[%emt 0:00:25]} 28. Qe3 {[%emt 0:01:32]} Bd7 {[%emt 0:02:25]} 29. Rf3 {[%emt 0:01:14]} Qd6 {[%emt 0:00:46]} 30. Rf7 {[%emt 0:01:19]} c5 {[%emt 0:01:03]} 31. Qf3 {[%emt 0:03:36]} 1-0

[Event "20th Prague Open 2022"]
[Site "Prague"]
[Date "2022.01.13"]
[Round "8.11"]
[White "Jordanov, Mihail"]
[Black "Neuman, Petr"]
[Result "1/2-1/2"]
[ECO "B61"]
[WhiteElo "2193"]
[BlackElo "2402"]
[Annotator "ChessBase"]
[PlyCount "46"]
[EventDate "2022.01.07"]
[EventType "swiss"]
[EventCountry "CZE"]
[SourceTitle "playchess.com"]
[Source "ChessBase"]
[SourceQuality "1"]
[TimeControl "40/5400+30:1800+30"]

1. e4 {[%emt 0:00:04]} c5 {[%emt 0:00:05]} 2. Nf3 {[%emt 0:00:04]} d6 {[%emt 0:00:04]} 3. d4 {[%emt 0:00:06]} cxd4 {[%emt 0:00:03]} 4. Nxd4 {[%emt 0:00:06]} Nf6 {[%emt 0:00:04]} 5. Nc3 {[%emt 0:00:06]} Nc6 {[%emt 0:00:03]} 6. Bg5 {[%emt 0:00:05]} Bd7 {[%emt 0:00:05]} 7. Qd2 {[%emt 0:00:14]} Rc8 {[%emt 0:00:14]} 8. Nxc6 {[%emt 0:00:11]} bxc6 {[%emt 0:02:17]} 9. Bc4 {[%emt 0:04:13]} h6 {[%emt 0:02:45]} 10. Bxf6 {[%emt 0:01:51]} exf6 {[%emt 0:05:25]} 11. O-O {[%emt 0:09:43]} Be7 {[%emt 0:00:06]} 12. Qd3 {[%emt 0:05:24]} O-O {[%emt 0:01:09]} 13. f4 {[%emt 0:01:46]} f5 {[%emt 0:08:43]} 14. e5 {[%emt 0:04:35]} d5 {[%emt 0:05:10]} 15. Bb3 {[%emt 0:00:20]} Be6 {[%emt 0:00:11]} 16. Rad1 {[%emt 0:08:37]} Qb6+ {[%emt 0:02:22]} 17. Kh1 {[%emt 0:00:15]} Rfd8 {[%emt 0:00:10]} 18. Qe2 {[%emt 0:08:08]} a5 {[%emt 0:01:44]} 19. Na4 {[%emt 0:01:27]} Qb7 {[%emt 0:07:17]} 20. Rfe1 {[%emt 0:03:49]} c5 {[%emt 0:05:00]} 21. c4 {[%emt 0:05:46]} d4 {[%emt 0:00:37]} 22. Bc2 {[%emt 0:02:59]} g6 {[%emt 0:00:41]} 23. b3 {[%emt 0:01:02]} Kg7 {[%emt 0:02:43]} 1/2-1/2

[Event "20th Prague Open 2022"]
[Site "Prague"]
[Date "2022.01.13"]
[Round "8.14"]
[White "Grutter, Tim"]
[Black "Acor, Corey"]
[Result "1/2-1/2"]
[ECO "C82"]
[WhiteElo "2194"]
[BlackElo "2303"]
[Annotator "ChessBase"]
[PlyCount "73"]
[EventDate "2022.01.07"]
[EventType "swiss"]
[EventCountry "CZE"]
[SourceTitle "playchess.com"]
[Source "ChessBase"]
[SourceQuality "1"]
[TimeControl "40/5400+30:1800+30"]

1. e4 {[%emt 0:00:02]} e5 {[%emt 0:03:37]} 2. Nf3 {[%emt 0:00:07]} Nc6 {[%emt 0:00:05]} 3. Bb5 {[%emt 0:00:05]} a6 {[%emt 0:01:41]} 4. Ba4 {[%emt 0:00:07]} Nf6 {[%emt 0:00:38]} 5. O-O {[%emt 0:00:06]} Nxe4 {[%emt 0:00:12]} 6. d4 {[%emt 0:02:15]} b5 {[%emt 0:00:14]} 7. Bb3 {[%emt 0:00:13]} d5 {[%emt 0:00:11]} 8. dxe5 {[%emt 0:00:11]} Be6 {[%emt 0:00:06]} 9. c3 {[%emt 0:02:59]} Bc5 {[%emt 0:00:14]} 10. Qd3 {[%emt 0:07:56]} O-O {[%emt 0:08:02]} 11. Nbd2 {[%emt 0:05:12]} Nxf2 {[%emt 0:11:24]} 12. Rxf2 {[%emt 0:02:08]} Bxf2+ {[%emt 0:00:08]} 13. Kxf2 {[%emt 0:00:13]} f6 {[%emt 0:00:23]} 14. exf6 {[%emt 0:07:08]} Qxf6 {[%emt 0:00:22]} 15. Kg1 {[%emt 0:15:01]} Rad8 {[%emt 0:01:19]} 16. h3 {[%emt 0:10:13]} Bf5 {[%emt 0:14:50]} 17. Qe2 {[%emt 0:02:29]} h6 {[%emt 0:03:25]} 18. Ne4 {[%emt 0:07:38]} Qg6 {[%emt 0:15:36]} 19. Nh4 {[%emt 0:04:40]} Qe6 {[%emt 0:05:09]} 20. Ng3 {[%emt 0:11:05]} Qxe2 {[%emt 0:04:55]} 21. Nxe2 {[%emt 0:00:03]} Bd3 {[%emt 0:00:17]} 22. Nf4 {[%emt 0:00:56]} Bc4 {[%emt 0:02:28]} 23. Nhg6 {[%emt 0:02:45]} Rf6 {[%emt 0:02:22]} 24. Be3 {[%emt 0:03:02]} Rdd6 {[%emt 0:08:13]} 25. Bc2 {[%emt 0:04:14]} d4 {[%emt 0:00:07]} 26. cxd4 {[%emt 0:00:36]} Nxd4 {[%emt 0:00:20]} 27. Bxd4 {[%emt 0:00:21]} Rxd4 {[%emt 0:00:02]} 28. Re1 {[%emt 0:01:31]} Rdxf4 {[%emt 0:12:38]} 29. Re8+ {[%emt 0:03:27]} Rf8 {[%emt 0:00:02]} 30. Ne7+ {[%emt 0:01:28]} Kh8 {[%emt 0:00:13]} 31. Ng6+ {[%emt 0:00:10]} Kg8 {[%emt 0:00:03]} 32. Nxf8 {[%emt 0:01:10]} Rxf8 {[%emt 0:00:40]} 33. Bh7+ {[%emt 0:00:08]} Kf7 {[%emt 0:00:26]} 34. Bg6+ {[%emt 0:00:12]} Kg8 {[%emt 0:00:11]} 35. Bh7+ {[%emt 0:00:39]} Kf7 {[%emt 0:00:02]} 36. Bg6+ {[%emt 0:00:09]} Kg8 37. Re1 1/2-1/2

[Event "20th Prague Open 2022"]
[Site "Prague"]
[Date "2022.01.13"]
[Round "8.16"]
[White "Ronce, Nathan"]
[Black "Macicek, Jakub"]
[Result "1/2-1/2"]
[ECO "D37"]
[WhiteElo "2171"]
[BlackElo "2250"]
[Annotator "ChessBase"]
[PlyCount "139"]
[EventDate "2022.01.07"]
[EventType "swiss"]
[EventCountry "CZE"]
[SourceTitle "playchess.com"]
[Source "ChessBase"]
[SourceQuality "1"]
[TimeControl "40/5400+30:1800+30"]

1. d4 {[%emt 0:10:21]} Nf6 {[%emt 0:00:20]} 2. c4 {[%emt 0:00:09]} e6 {[%emt 0:00:07]} 3. Nf3 {[%emt 0:00:12]} d5 {[%emt 0:01:29]} 4. Nc3 {[%emt 0:00:39]} Be7 {[%emt 0:02:45]} 5. Bf4 {[%emt 0:00:30]} O-O {[%emt 0:01:15]} 6. e3 {[%emt 0:00:36]} c6 {[%emt 0:01:01]} 7. Bd3 {[%emt 0:02:51]} Nbd7 {[%emt 0:08:50]} 8. c5 {[%emt 0:00:42]} Nh5 {[%emt 0:08:00]} 9. O-O {[%emt 0:05:26]} Nxf4 {[%emt 0:00:08]} 10. exf4 {[%emt 0:00:05]} b6 {[%emt 0:01:38]} 11. b4 {[%emt 0:01:50]} a5 {[%emt 0:00:17]} 12. a3 {[%emt 0:00:49]} Ba6 {[%emt 0:01:09]} 13. Bxa6 {[%emt 0:11:17]} Rxa6 {[%emt 0:01:32]} 14. Qd3 {[%emt 0:01:25]} b5 {[%emt 0:07:46]} 15. Rfb1 {[%emt 0:10:49]} a4 {[%emt 0:01:23]} 16. Re1 {[%emt 0:04:08]} Bf6 {[%emt 0:02:23]} 17. Ne5 {[%emt 0:03:22]} Qc7 {[%emt 0:02:09]} 18. g3 {[%emt 0:09:13]} Raa8 {[%emt 0:03:45]} 19. h4 {[%emt 0:01:55]} g6 {[%emt 0:09:51]} 20. Re2 {[%emt 0:06:43]} Bg7 {[%emt 0:00:38]} 21. Rae1 {[%emt 0:00:38]} Rae8 {[%emt 0:00:50]} 22. h5 {[%emt 0:08:55]} Bxe5 {[%emt 0:23:25]} 23. dxe5 {[%emt 0:00:59]} Kh8 {[%emt 0:07:34]} 24. Qd4 {[%emt 0:07:48]} Kg7 {[%emt 0:01:13]} 25. Kg2 {[%emt 0:01:26]} Rg8 {[%emt 0:00:29]} 26. Nb1 {[%emt 0:05:15]} Kf8 {[%emt 0:00:18]} 27. Nd2 {[%emt 0:00:28]} Ke7 {[%emt 0:00:32]} 28. Nf3 {[%emt 0:00:24]} Kd8 {[%emt 0:01:27]} 29. Rh1 {[%emt 0:00:54]} Nf8 {[%emt 0:00:48]} 30. Ree1 {[%emt 0:01:42]} Kc8 {[%emt 0:00:23]} 31. hxg6 {[%emt 0:00:33]} fxg6 {[%emt 0:00:30]} 32. Rh6 {[%emt 0:00:17]} Rg7 {[%emt 0:00:23]} 33. Reh1 {[%emt 0:00:23]} Kb7 {[%emt 0:00:24]} 34. Ng5 {[%emt 0:00:46]} Ree7 {[%emt 0:00:30]} 35. Kf1 {[%emt 0:00:47]} Ka6 {[%emt 0:00:16]} 36. Ke2 {[%emt 0:00:22]} Kb7 {[%emt 0:00:04]} 37. Kd2 {[%emt 0:01:47]} Qd7 {[%emt 0:00:06]} 38. Kc3 {[%emt 0:00:12]} Qc7 {[%emt 0:00:16]} 39. Rd1 {[%emt 0:00:12]} Ka6 {[%emt 0:00:18]} 40. Rdh1 {[%emt 0:00:33]} Kb7 {[%emt 0:00:16]} 41. Kb2 {[%emt 0:30:06]} Ka6 {[%emt 0:30:24]} 42. R1h4 {[%emt 0:00:41]} Kb7 {[%emt 0:00:58]} 43. Nf3 {[%emt 0:00:00]} Qd7 {[%emt 0:00:00]} 44. Rh1 {[%emt 0:00:00]} Ref7 {[%emt 0:00:00]} 45. Qe3 {[%emt 0:00:00]} Qe8 {[%emt 0:00:00]} 46. Kc2 {[%emt 0:00:00]} Rc7 {[%emt 0:00:00]} 47. Ng5 {[%emt 0:00:00]} Rce7 {[%emt 0:00:00]} 48. Qd4 {[%emt 0:00:00]} Rc7 {[%emt 0:00:00]} 49. Kd2 {[%emt 0:00:00]} Rce7 {[%emt 0:00:00]} 50. Ke2 {[%emt 0:00:00]} Rc7 {[%emt 0:00:00]} 51. Kf1 {[%emt 0:00:00]} Rce7 {[%emt 0:00:00]} 52. Kg2 {[%emt 0:00:00]} Rc7 {[%emt 0:00:00]} 53. Rd1 {[%emt 0:00:00]} Rce7 {[%emt 0:00:00]} 54. Qe3 {[%emt 0:00:00]} Rc7 {[%emt 0:00:00]} 55. g4 {[%emt 0:00:00]} Rce7 {[%emt 0:00:00]} 56. Nf3 {[%emt 0:00:00]} Rc7 {[%emt 0:00:00]} 57. g5 {[%emt 0:00:42]} Rce7 {[%emt 0:00:00]} 58. Rc1 {[%emt 0:01:34]} Kb8 {[%emt 0:00:00]} 59. Nd4 {[%emt 0:00:30]} Rb7 {[%emt 0:00:00]} 60. Nf3 {[%emt 0:02:02]} Rbe7 {[%emt 0:00:00]} 61. Nh2 {[%emt 0:00:11]} Qd7 {[%emt 0:00:00]} 62. Rd1 {[%emt 0:00:14]} Qc7 {[%emt 0:00:00]} 63. Ng4 {[%emt 0:00:05]} Kb7 {[%emt 0:00:00]} 64. Nf6 {[%emt 0:00:05]} Kb8 {[%emt 0:00:28]} 65. Rd4 {[%emt 0:00:13]} Kb7 {[%emt 0:00:22]} 66. Rh1 {[%emt 0:00:49]} Ka6 {[%emt 0:01:33]} 67. Qh3 {[%emt 0:00:10]} Kb7 {[%emt 0:00:15]} 68. Qh6 {[%emt 0:01:58]} Ka7 {[%emt 0:00:24]} 69. Rhd1 {[%emt 0:00:07]} Kb7 {[%emt 0:00:12]} 70. Rh1 {[%emt 0:00:47]} 1/2-1/2

[Event "20th Prague Open 2022"]
[Site "Prague"]
[Date "2022.01.13"]
[Round "8.19"]
[White "Goossens, Hanne"]
[Black "Matras, Ondrej"]
[Result "0-1"]
[ECO "C03"]
[WhiteElo "2133"]
[BlackElo "2223"]
[Annotator "ChessBase"]
[PlyCount "96"]
[EventDate "2022.01.07"]
[EventType "swiss"]
[EventCountry "CZE"]
[SourceTitle "playchess.com"]
[Source "ChessBase"]
[SourceQuality "1"]
[TimeControl "40/5400+30:1800+30"]

1. e4 {[%emt 0:00:06]} e6 {[%emt 0:00:00]} 2. d4 {[%emt 0:00:15]} d5 {[%emt 0:00:00]} 3. Nd2 {[%emt 0:00:12]} a6 {[%emt 0:00:00]} 4. Ngf3 {[%emt 0:00:54]} c5 {[%emt 0:00:00]} 5. dxc5 {[%emt 0:04:48]} Bxc5 {[%emt 0:00:00]} 6. Bd3 {[%emt 0:00:58]} Nf6 {[%emt 0:00:00]} 7. Qe2 {[%emt 0:02:55]} Be7 {[%emt 0:02:51]} 8. exd5 {[%emt 0:04:09]} exd5 {[%emt 0:00:08]} 9. Nd4 {[%emt 0:03:30]} O-O {[%emt 0:01:20]} 10. Nf5 {[%emt 0:01:53]} Re8 {[%emt 0:01:04]} 11. O-O {[%emt 0:01:09]} Bf8 {[%emt 0:02:29]} 12. Qf3 {[%emt 0:04:53]} Nc6 {[%emt 0:01:23]} 13. Nb3 {[%emt 0:06:41]} Ne5 {[%emt 0:06:54]} 14. Qg3 {[%emt 0:02:18]} Kh8 {[%emt 0:00:36]} 15. Bg5 {[%emt 0:02:13]} Nxd3 {[%emt 0:04:11]} 16. Qxd3 {[%emt 0:00:24]} Qd7 {[%emt 0:01:29]} 17. Ne3 {[%emt 0:04:23]} Ne4 {[%emt 0:02:32]} 18. Bf4 {[%emt 0:03:09]} g5 {[%emt 0:04:11]} 19. Bg3 {[%emt 0:04:42]} f5 {[%emt 0:00:12]} 20. Nxd5 {[%emt 0:10:04]} f4 {[%emt 0:03:43]} 21. Rae1 {[%emt 0:04:29]} fxg3 {[%emt 0:03:38]} 22. Rxe4 {[%emt 0:01:47]} gxh2+ {[%emt 0:00:48]} 23. Kxh2 {[%emt 0:03:40]} Qd6+ {[%emt 0:01:06]} 24. Kg1 {[%emt 0:04:57]} Bf5 {[%emt 0:02:08]} 25. Rxe8 {[%emt 0:04:20]} Bxd3 {[%emt 0:00:11]} 26. Rxa8 {[%emt 0:00:07]} Bxf1 {[%emt 0:00:10]} 27. Kxf1 {[%emt 0:00:07]} Qxd5 {[%emt 0:00:14]} 28. Rxf8+ {[%emt 0:00:26]} Kg7 {[%emt 0:00:02]} 29. Re8 {[%emt 0:00:39]} Qd1+ {[%emt 0:00:43]} 30. Re1 {[%emt 0:00:06]} Qxc2 {[%emt 0:00:18]} 31. Kg1 {[%emt 0:03:31]} Qxb2 {[%emt 0:00:25]} 32. Re7+ {[%emt 0:00:09]} Kg6 {[%emt 0:00:41]} 33. Rxb7 {[%emt 0:00:08]} Qxa2 {[%emt 0:00:17]} 34. f3 {[%emt 0:05:03]} a5 {[%emt 0:00:46]} 35. Rb6+ {[%emt 0:00:15]} Kf7 {[%emt 0:00:27]} 36. Rb7+ {[%emt 0:00:21]} Ke8 {[%emt 0:00:17]} 37. Nxa5 {[%emt 0:00:42]} Qxa5 {[%emt 0:01:32]} 38. Rxh7 {[%emt 0:00:07]} Qb6+ {[%emt 0:00:59]} 39. Kh2 {[%emt 0:00:26]} Qb8+ {[%emt 0:03:44]} 40. g3 {[%emt 0:12:59]} Qe5 {[%emt 0:00:29]} 41. Rh5 {[%emt 0:34:57]} Kf7 {[%emt 0:30:47]} 42. Kh3 {[%emt 0:00:00]} Qf5+ {[%emt 0:31:28]} 43. Kg2 {[%emt 0:00:00]} Qc2+ {[%emt 0:00:02]} 44. Kh3 {[%emt 0:00:00]} Kg6 {[%emt 0:00:13]} 45. Rh8 {[%emt 0:00:00]} Qd1 {[%emt 0:00:11]} 46. Rg8+ {[%emt 0:00:00]} Kh6 {[%emt 0:00:37]} 47. Rh8+ {[%emt 0:00:00]} Kg7 {[%emt 0:00:14]} 48. Rh5 {[%emt 0:00:00]} Kg6 {[%emt 0:00:04]} 0-1

[Event "20th Prague Open 2022"]
[Site "Prague"]
[Date "2022.01.13"]
[Round "8.20"]
[White "Michalczak, Thomas"]
[Black "Mach, Ondrej"]
[Result "1-0"]
[ECO "A47"]
[WhiteElo "2218"]
[BlackElo "1893"]
[Annotator "ChessBase"]
[PlyCount "81"]
[EventDate "2022.01.07"]
[EventType "swiss"]
[EventCountry "CZE"]
[SourceTitle "playchess.com"]
[Source "ChessBase"]
[SourceQuality "1"]
[TimeControl "40/5400+30:1800+30"]

1. d4 {[%emt 0:03:40]} Nf6 {[%emt 0:00:13]} 2. Nf3 {[%emt 0:00:06]} b6 {[%emt 0:00:04]} 3. Bg5 {[%emt 0:00:26]} Ne4 {[%emt 0:01:01]} 4. Bh4 {[%emt 0:00:11]} Bb7 {[%emt 0:00:29]} 5. Nbd2 {[%emt 0:00:15]} d5 {[%emt 0:04:42]} 6. e3 {[%emt 0:01:24]} Nxd2 {[%emt 0:05:51]} 7. Qxd2 {[%emt 0:00:07]} c5 {[%emt 0:01:02]} 8. dxc5 {[%emt 0:03:57]} bxc5 {[%emt 0:00:26]} 9. Bb5+ {[%emt 0:00:43]} Bc6 {[%emt 0:01:24]} 10. Bxc6+ {[%emt 0:00:37]} Nxc6 {[%emt 0:00:09]} 11. Rd1 {[%emt 0:02:10]} Qb6 {[%emt 0:00:50]} 12. Qxd5 {[%emt 0:00:32]} Rd8 {[%emt 0:00:45]} 13. Qb3 {[%emt 0:00:21]} Rxd1+ {[%emt 0:01:48]} 14. Kxd1 {[%emt 0:00:07]} e6 {[%emt 0:14:23]} 15. Nd2 {[%emt 0:25:55]} Qa6 {[%emt 0:02:33]} 16. Qc4 {[%emt 0:00:34]} Qb7 {[%emt 0:03:50]} 17. Kc1 {[%emt 0:03:40]} Bd6 {[%emt 0:06:41]} 18. Ne4 {[%emt 0:11:30]} Be5 {[%emt 0:05:04]} 19. c3 {[%emt 0:00:08]} O-O {[%emt 0:02:00]} 20. Nxc5 {[%emt 0:00:10]} Qc7 {[%emt 0:01:12]} 21. Bg3 {[%emt 0:21:26]} Rd8 {[%emt 0:08:35]} 22. Rd1 {[%emt 0:00:48]} Rxd1+ {[%emt 0:03:08]} 23. Kxd1 {[%emt 0:00:06]} Qd6+ {[%emt 0:06:01]} 24. Ke2 {[%emt 0:00:11]} Bxg3 {[%emt 0:03:09]} 25. hxg3 {[%emt 0:00:08]} h6 {[%emt 0:00:42]} 26. b4 {[%emt 0:00:29]} Qe5 {[%emt 0:03:33]} 27. Nd3 {[%emt 0:01:52]} Qd6 {[%emt 0:01:11]} 28. Qc5 {[%emt 0:00:21]} Qd7 {[%emt 0:00:56]} 29. a4 {[%emt 0:01:32]} Ne7 {[%emt 0:03:00]} 30. b5 {[%emt 0:01:26]} Nd5 {[%emt 0:01:11]} 31. Ne5 {[%emt 0:01:28]} Qd8 {[%emt 0:01:35]} 32. e4 {[%emt 0:04:08]} Nb6 {[%emt 0:09:36]} 33. a5 {[%emt 0:02:03]} Na4 {[%emt 0:00:44]} 34. Qb4 {[%emt 0:00:15]} Qg5 {[%emt 0:02:53]} 35. Qxa4 {[%emt 0:05:25]} Qxe5 {[%emt 0:00:08]} 36. Qb4 {[%emt 0:00:09]} Qg5 {[%emt 0:01:12]} 37. b6 {[%emt 0:01:12]} Qc1 {[%emt 0:04:27]} 38. Qb3 {[%emt 0:00:22]} axb6 {[%emt 0:00:15]} 39. axb6 {[%emt 0:00:07]} Qa1 {[%emt 0:00:06]} 40. b7 {[%emt 0:00:24]} Qa6+ {[%emt 0:00:06]} 41. c4 {[%emt 0:30:16]} 1-0